Cogmind - Beta 14 @@@ ROGUE MODE // 2024.08.17 @ 00:01:21 Player: porkhorse Result: Self-destructed Performance ------------- Evolutions (1) 500 Regions Visited (3) 600 Robots Destroyed (32) 160 Value Destroyed (818) 818 Prototype IDs (5) 100 Alien Tech Used (0) 0 Bonus (73) 73 TOTAL SCORE: 2251 Bonus ------- Follower Combat Kills 73 Cogmind --------- Core Integrity 385/400 Matter 236/300 Energy 128/160 System Corruption 0% Temperature Cool (0) Movement Walking (100) Location -9/Materials Parts ------- > --- POWER (1) -------- Light Nuclear Core > --- PROPULSION (3) --- Aluminum Leg VSS Leg VSS Leg > --- UTILITY (3) ------ Medium Storage Unit Improved Terrain Scanner Seismic Detector > --- WEAPON (2) ------- Advanced Beam Cannon Heavy Assault Rifle > --- INVENTORY (10) --- Light Nuclear Core VSS Leg VSS Leg Hover Unit Hover Unit Improved Heat Sink Targeting Computer Hardlight Generator Hacking Suite Makeshift Hammer Peak State ------------ > --- POWER ------------ Light Nuclear Core > --- PROPULSION ------- VSS Leg VSS Leg VSS Leg > --- UTILITY ---------- Medium Storage Unit Improved Terrain Scanner Seismic Detector > --- WEAPON ----------- Advanced Beam Cannon Advanced Beam Cannon > --- INVENTORY -------- Light Nuclear Core Aluminum Leg Aluminum Leg Hover Unit Hover Unit Improved Heat Sink Targeting Computer Hacking Suite Beam Rifle Makeshift Hammer [Rating: 25] Favorites ----------- Power Improved Ion Engine Engine Improved Ion Engine Power Core Light Nuclear Core Propulsion Aluminum Leg Leg Aluminum Leg Utility Improved Terrain Scanner Device Improved Terrain Scanner Storage Medium Storage Unit Weapon Advanced Beam Cannon Energy Gun Beam Rifle Energy Cannon Advanced Beam Cannon Ballistic Gun Assault Rifle Impact Weapon Makeshift Hammer Build | -11 -10 -10 -9 ------- Run | Yrd Mat Min Mat Slots Evolved 2 | . . . 2 Power . | . . . . Propulsion 1 | . . . 1 Utility 1 | . . . 1 Weapon . | . . . . Parts Attached 49 | 7 17 6 19 Power 13 | 1 9 . 3 Engine 8 | 1 7 . . Core 5 | . 2 . 3 Reactor . | . . . . Propulsion 17 | 2 1 6 8 Treads . | . . . . Leg 17 | 2 1 6 8 Wheel . | . . . . Hover . | . . . . Flight . | . . . . Utility 5 | 2 2 . 1 Device 3 | 1 1 . 1 Storage 2 | 1 1 . . Processor . | . . . . Hackware . | . . . . Protection . | . . . . Artifact . | . . . . Weapon 14 | 2 5 . 7 Energy Gun 1 | . . . 1 Energy Cannon 7 | . 4 . 3 Ballistic Gun 5 | 2 1 . 2 Ballistic Cannon . | . . . . Launcher . | . . . . Special Weapon . | . . . . Impact Weapon 1 | . . . 1 Slashing Weapon . | . . . . Piercing Weapon . | . . . . Special Melee Weapon . | . . . . Unidentified Prototypes 1 | . . . 1 Parts Lost 1 | . . 1 . Power . | . . . . Propulsion 1 | . . 1 . Utility . | . . . . Weapon . | . . . . Highest Loss Streak 1 | . . 1 . To Critical Strikes . | . . . . Average Slot Usage (%) 99 | . 99 99 94 Engine 13 | . 13 14 5 Leg 28 | . 28 27 28 Device 14 | . 14 14 21 Storage 13 | . 14 14 11 Energy Cannon 17 | . 13 28 17 Ballistic Gun 9 | . 14 . 1 Peak Build Rating 25 | 9 15 16 25 Average Rating 13 | 5 12 15 19 On Entrance 10 | . 9 15 16 Naked Turns . | . . . . Heaviest Build 27 | 15 26 26 27 Greatest Support 36 | 20 20 20 36 Greatest Overweight (x) 2 | 2 1 2 2 Average Overweight (x) . | . . 1 . Largest Inventory Capacity 10 | 8 10 10 10 Average Capacity 9 | 6 9 10 10 Most Carried 10 | 3 10 10 10 Average Carried 8 | 1 8 9 9 Final Capacity 10 | 8 10 10 10 Final Carried 10 | 3 10 10 10 Class Distribution -------------------- 94% | Mutant 5% | Scavenger-Mutant Dominant Class ---------------- Mutant | -10/Materials Mutant | -10/Mines Scavenger-Mutant | -9/Materials Resources | -11 -10 -10 -9 ----------- Run | Yrd Mat Min Mat Matter Collected 943 | 254 498 55 136 Remotely . | . . . . Salvage Created 1083 | 25 698 167 193 Parts 54 | 4 30 4 16 Haulers Intercepted . | . . . . Recyclers Shooed . | . . . . Parts Field Recycled . | . . . . Retrieved Matter . | . . . . Parts Self-Destructed . | . . . . Prevented . | . . . . Kills | -11 -10 -10 -9 ------- Run | Yrd Mat Min Mat Combat Hostiles Destroyed 23 | . 13 4 6 Guns 10 | . 10 . . Cannons 12 | . 2 4 6 Classes Destroyed 6 | 1 5 . . Tunneler 1 | 1 . . . Recycler 2 | . 2 . . Operator 2 | . 2 . . Watcher 4 | . 3 . 1 Swarmer 6 | . 3 . 3 Grunt 17 | . 10 4 3 Best Kill Streak 4 | 1 4 2 3 Combat Bots Only 3 | . 3 2 3 Max Kills in Single Turn 1 | 1 1 1 1 Gunslinging . | . . . . Exploded . | . . . . Melee . | . . . . Uniques/NPCs Destroyed . | . . . . Combat | -11 -10 -10 -9 -------- Run | Yrd Mat Min Mat Hostile Shots Fired 92 | . 69 9 14 Missed 21 | . 15 . 6 Damage Taken 851 | . 627 138 86 Core 91 | . 66 10 15 Absorbed by Shields . | . . . . Core Remaining (%) 84 | 100 . 69 . Volleys Fired 82 | 1 64 7 10 Largest 2 | 2 2 2 2 Hottest 136 | 40 136 136 136 Shots Fired 164 | 2 128 14 20 Gun 108 | 2 106 . . Cannon 56 | . 22 14 20 Launcher . | . . . . Special . | . . . . Kinetic 108 | 2 106 . . Thermal 56 | . 22 14 20 Explosive . | . . . . Electromagnetic . | . . . . Robot Hit Streak 10 | 1 8 10 7 Robot Miss Streak 4 | . 4 1 1 Penetration Max . | . . . . Secondary Targets 1 | . 1 . . Max Gunslinging Chain 1 | . 1 . . Shots Hit Robots 97 | 1 73 10 13 Core Hits 42 | 1 28 6 7 Critical Kills 1 | . 1 . . Critical Parts Destroyed 1 | . 1 . . Critical Strikes 2 | . 2 . . Meltdown 1 | . 1 . . Destroy 1 | . 1 . . Melee Attacks 1 | . . . 1 Impact 1 | . . . 1 Slashing . | . . . . Piercing . | . . . . Sneak Attacks . | . . . . Combat Hostiles . | . . . . Follow-up Attacks . | . . . . Damage Inflicted 1602 | 14 1057 229 302 Guns 806 | 14 792 . . Cannons 792 | . 261 229 302 Explosions . | . . . . Melee . | . . . . Ramming 4 | . 4 . . Kinetic 806 | 14 792 . . Thermal 792 | . 261 229 302 Explosive . | . . . . Electromagnetic . | . . . . Impact . | . . . . Slashing . | . . . . Piercing . | . . . . Highest Corruption . | . . . . Average Corruption . | . . . . Corruption Purged . | . . . . Corruption Blocked . | . . . . Overload Shots . | . . . . Overflow Damage 21 | . 20 . 1 Projectiles 21 | . 20 . 1 Explosions . | . . . . Melee . | . . . . Knockbacks . | . . . . Impact . | . . . . Kinetic . | . . . . Secondary . | . . . . Self-Inflicted Damage . | . . . . Shots . | . . . . Rammed . | . . . . Targets Rammed 1 | . 1 . . Kicked 1 | . 1 . . Crushed . | . . . . Highest Temperature 375 | . 159 375 312 Average Temperature 104 | . 53 168 132 Received Heat Transfer 453 | . 318 96 39 Effects 5 | . . 4 1 Energy Bleed 3 | . . 2 1 Interference 2 | . . 2 . Siege Activations . | . . . . Robots Corrupted . | . . . . Combat Hostiles . | . . . . Parts Fried . | . . . . Impact Corruptions . | . . . . Robots Melted 1 | . 1 . . Combat Hostiles 1 | . 1 . . Parts Melted 6 | . 3 2 1 Heat Transferred 1406 | . 481 407 518 Parts Sabotaged . | . . . . Parts Stolen . | . . . . Parts Stripped . | . . . . Power Chain Reactions . | . . . . Alert | -11 -10 -10 -9 ------- Run | Yrd Mat Min Mat Peak Influence 310 | 5 310 55 241 Initial 3 | . 3 . . Average 73 | 1 78 30 166 Maximum Alert Level 1 | . 1 . 1 Low Security (%) 91 | 100 91 100 69 Level 1 8 | . 8 . 30 Level 2 . | . . . . Level 3 . | . . . . Level 4 . | . . . . Level 5 . | . . . . High Security . | . . . . Max Security . | . . . . Squads Dispatched 2 | . 2 . . Investigation . | . . . . Extermination . | . . . . Reinforcement 2 | . 2 . . Assault . | . . . . Garrison . | . . . . Intercept . | . . . . Searches Triggered . | . . . . Construction Impeded . | . . . . Haulers Reinforced . | . . . . Active Scanning Responses . | . . . . Cargo Convoy Interrupts . | . . . . Stealth | -11 -10 -10 -9 --------- Run | Yrd Mat Min Mat Distress Signals 8 | . 4 . 4 Communications Jammed . | . . . . Distress Signals . | . . . . Times Spotted 44 | . 28 3 13 Peak Tracking Total 5 | . 5 2 5 Tactical Retreats 2 | . 2 . . Traps | -11 -10 -10 -9 ------- Run | Yrd Mat Min Mat Traps Triggered 4 | . 1 . 3 Indirectly . | . . . . Trap Hack Attempts . | . . . . Triggered . | . . . . Disarmed . | . . . . Reprogrammed . | . . . . Reused . | . . . . Traps Extracted . | . . . . Installed . | . . . . Triggered . | . . . . Machines | -11 -10 -10 -9 ---------- Run | Yrd Mat Min Mat Machines Disabled . | . . . . Max in Single Turn . | . . . . Machines Repaired . | . . . . Machines Dismantled . | . . . . Machines Sabotaged . | . . . . Overloaded Fab Kills . | . . . . Hacking | -11 -10 -10 -9 --------- Run | Yrd Mat Min Mat Machines Accessed 10 | . 7 . 3 Terminals 6 | . 5 . 1 Fabricators . | . . . . Repair Stations . | . . . . Recycling Units 4 | . 2 . 2 Scanalyzers . | . . . . Garrison Access . | . . . . Total Hacks 28 | . 19 . 9 Successful 18 | . 12 . 6 Failed 10 | . 7 . 3 Catastrophic 1 | . 1 . . Database Lockouts . | . . . . Manual 11 | . 6 . 5 Terminals 15 | . 14 . 1 Fabricators . | . . . . Repair Stations . | . . . . Recycling Units 13 | . 5 . 8 Scanalyzers . | . . . . Garrison Access . | . . . . Terminal Hacks 10 | . 9 . 1 Robot Analysis 2 | . 2 . . Prototype ID Bank 2 | . 2 . . Terminal Index 1 | . 1 . . Alert Level 1 | . 1 . . Locate Traps 2 | . 1 . 1 Patrol Status 1 | . 1 . . Zone Layout 1 | . 1 . . Fabricator Hacks . | . . . . Repair Station Hacks . | . . . . Recycling Unit Hacks 5 | . 2 . 3 Report Inventory 4 | . 2 . 2 Retrieve Components 1 | . . . 1 Scanalyzer . | . . . . Garrison Access Hacks . | . . . . Unauthorized Hacks 3 | . 1 . 2 Terminals . | . . . . Fabricators . | . . . . Repair Stations . | . . . . Recycling Units 3 | . 1 . 2 Monitor 2 | . 1 . 1 Mask 1 | . . . 1 Scanalyzers . | . . . . Garrison Access . | . . . . Data Cores Recovered . | . . . . Used . | . . . . Hacking Detections 7 | . 6 . 1 Full Trace Events 2 | . 2 . . Feedback Events . | . . . . Feedback Blocked . | . . . . Robot Schematics Acquired . | . . . . Robots Built . | . . . . Authchips . | . . . . Time . | . . . . Total Robot Build Rating . | . . . . Part Schematics Acquired . | . . . . Parts Built . | . . . . Authchips . | . . . . Time . | . . . . Total Part Build Rating . | . . . . Parts Repaired . | . . . . Time . | . . . . Parts Recycled . | . . . . Recycled Matter . | . . . . Retrieved Matter . | . . . . Retrieved Components 7 | . . . 7 Parts Scanalyzed . | . . . . Part Schematics Acquired . | . . . . Parts Damaged . | . . . . Bothacking | -11 -10 -10 -9 ------------ Run | Yrd Mat Min Mat Used RIF Installer . | . . . . Robots Hacked . | . . . . Non-combat . | . . . . Combat . | . . . . Robot Hacks Applied . | . . . . Relay Couplers Released . | . . . . Fabnet Peak Effective % . | . . . . Robots Rewired . | . . . . Allies Hacked . | . . . . Hacks Repelled . | . . . . Allies | -11 -10 -10 -9 -------- Run | Yrd Mat Min Mat Total Allies 2 | . . 2 . Largest Group 2 | . . 2 2 Highest-Rated Group 43 | . . 43 43 Highest-Rated Ally 31 | . . 31 31 Total Orders . | . . . . Ally Attacks 12 | . . . 12 Total Damage 145 | . . . 145 Kills 4 | . . . 4 Allies Corrupted . | . . . . Allies Melted . | . . . . Intel | -11 -10 -10 -9 ------- Run | Yrd Mat Min Mat Robot Analysis Total 2 | . 2 . . Derelict Logs Recovered 2 | . . 2 . Drone Launches . | . . . . Drone Recoveries . | . . . . Exploration | -11 -10 -10 -9 ------------- Run | Yrd Mat Min Mat Turns Passed 3686 | 80 2266 968 372 Spaces Moved 1900 | 52 1183 470 195 Core 14 | 14 . . . Treads . | . . . . Legs 1886 | 38 1183 470 195 Wheels . | . . . . Hover . | . . . . Flight . | . . . . Fastest Speed 50 | 50 120 190 90 Average Speed 164 | 123 162 190 125 Slowest Speed 270 | 150 190 260 270 Overloaded Moves . | . . . . Propulsion Burnouts . | . . . . Robots Hopped . | . . . . Cave-ins Triggered . | . . . . Exploration Rate (%) 53 | 4 99 87 23 Regions Visited 3 Branch Regions 1 Pre-discovered Areas . | . . . . Known Exits Taken . | . . . . Unknown Exits Taken 3 | 1 1 1 . Scrap Searched 1 | . . 1 . Spaces Dug 1 | . . . 1 Terrain Destroyed 1 | . . . 1 Melee 1 | . . . 1 Projectile . | . . . . AOE . | . . . . Terrain Rammed . | . . . . Walls Destroyed . | . . . . Machines Disabled . | . . . . Actions | -11 -10 -10 -9 --------- Run | Yrd Mat Min Mat Total 2285 | 62 1397 529 297 Wait 208 | . 110 41 57 Move 1897 | 51 1182 469 195 Hop . | . . . . Pick Up 23 | 3 11 2 7 Fast Attach 18 | 7 4 1 6 Attach 4 | . 1 . 3 Detach 1 | . 1 . . Swap 27 | . 12 5 10 Drop 23 | . 11 4 8 Fire 82 | 1 64 7 10 Melee 1 | . . . 1 Ram . | . . . . Kick 1 | . 1 . . Crush . | . . . . Escape Stasis . | . . . . Rewire . | . . . . Trap . | . . . . Miscellaneous . | . . . . Route ------- -11/Scrapyard -10/Materials (discovered 5 exits: *Mat x3 / [*Min] / [*Sub]) -10/Mines (discovered 2 exits: *Mat x2) -9/Materials (discovered 1 exit: [*Min]) History --------- Turn | Location | Event 6 | -11/Scrapyard | Discovered new exit (range 16) 81 | -11/Scrapyard | Entered Materials 307 | -10/Materials | Build established: Mutant 490 | -10/Materials | Discovered new exit (range 14) 1262 | -10/Materials | Discovered new exit (range 3) 1378 | -10/Materials | Discovered new exit (range 15) 1858 | -10/Materials | Discovered new exit (range 8) 2298 | -10/Materials | Discovered new exit (range 15) 2347 | -10/Materials | Entered Mines 2493 | -10/Mines | Learned Materials stockpile data 2546 | -10/Mines | Discovered new exit (range 15) 2646 | -10/Mines | A weapon hastily lodged in a ceiling crevice suddenly fell to the ground 2956 | -10/Mines | Learned Materials interactive machine intel 3292 | -10/Mines | Discovered new exit (range 4) 3315 | -10/Mines | Entered Materials 3315 | -9/Materials | Accompanied by 2 allies 3315 | -9/Materials | Evolved 2 slots: Propulsion x1, Utility x1 3317 | -9/Materials | Loaded intel: 18 interactive machine locations 3322 | -9/Materials | Led the pair of lost Derelicts to an unsafe place 3596 | -9/Materials | Discovered new exit (range 13) 3687 | -9/Materials | Self-destructed Last Messages --------------- Map updated. 03616_ K-01 Serf collects debris. 03616_ Acquired VSS Leg. 03616_ K-01 Serf collects debris. 03618_ Acquired Lgt. Nuclear Core. 03619_ K-01 Serf collects debris. 03638_ Acquired Hvy. Assault Rifle. 03639_ K-01 Serf cleans the Hadron Collector. 03639_ K-01 Serf collects debris. 03661_ Acquired 6 matter. 03663_ Acquired Aluminum Leg. 03664_ Acquired VSS Leg. 03666_ K-01 Serf collects debris. 03687_ Connecting with Recycling Unit... >>Recycling(Report) Matter reserves: 0 Inventory: Imp. Aluminum Leg (71%) Imp. Treads (32%) Terrain Scan Processor (63%) Map ----- +----------------------------------------------------+ | ??????????????????????# #?????? | | ??????????????????????# +???? ? | | ????????? ????????????# #?????? | | ????????+##+#?????????# #?????? | | ???????? #???####### ##????# | | ?????#?? #??#!!!!## =!###### | | ???????? #??! !# [%!% | | ########/## #?? # % * | | # # ### # ! *| | | # """ # # ###### | | # """ # ^ ###+######## | | # """ [[[ + ^ T # [ | | # """ [ # ] # ""*[ """ | | # [[ ## # "Y =[""" | | # ## ^ # ""== """ | | # ## # | | ######+##+## """" # ] | | ?????# """" # | | ?????# """" ############ | | ?????# | | #????####### | | ????######## | | #???# # ######## ####### | | ????# """ # ########"##????# | | ????# "Y" # # [ !#?#??# = | | ????# @ # # * #?#??#== | | ????# / + + #????### | | ????# ! # # #??????? | | ????######## #############????# | | ??????????# #?#??#????????#?? | | ?????????# #????#????????#? | | ?????????# #??????#????#??? | | ?????????# < #??????????????# | | ???????? + #?#???####???##? | | ?????????#"" ""##?????????????? | | ?????????##"|||"##????????#?????? | | ??????????##"""##???????????????? | | ???????????#####??????????????#?? | | ???????????????????????##???????? | | ????????????????????????????????? | | ????????????????????????????????? | | ????????????????????????????????? | | ????????????????????????????????? | | ????????????????????????????????? | | ????????????????????????????????? | | ????????????????????????????????? | | ????????????????????????????????? | | ????????????????????????????????? | | ????????????????????????????????? | | | +----------------------------------------------------+ Best States ------------- Heat Dissipation 28 Energy Generation 14 Energy Capacity 265 Matter Stores 300 Matter Capacity 300 Sight Range 16 Terrain Scan Range 16 Terrain Scan Density 10 Evasion (%) 57 Item Schematics ----------------- None Robot Schematics ------------------ None Fabricated ------------ Nothing Alien Tech Used ----------------- None Achievements -------------- None Challenges ------------ None Game ------ Seed CompanionCloakPerforator Manual? 0 Play Time 00:38:44 Cumulative 23.7 hours Start 2024.08.15 @ 01:57:25 End 2024.08.17 @ 00:01:21 Sessions 5 Manual Loads 0 Difficulty Rogue Special Mode None Game No. 24 Rogue 5 Adventurer 19 Explorer 0 Win Type - Total 0 Types 0/0/0/0/0/0/0/0/0 Lore% 7 Gallery% 21 Achievement% 17 Wizard Run 0 Options --------- Layout 0 ASCII 0 Keyboard 1 Movement Arrows Keybinds 0 Fullscreen 2 Font 18/SmallcapsGlow Map View 76x50 Zoom Use 0% Tactical HUD 1 Map Filters NONE Filters NONE Steam 1 RUN: f8fb9418-03e6-43dd-8454-ad5ad444b21d